fUSD/lending_fUSD_20250123
["ID","MTS","AMOUNT","RATE_DAILY","PERIOD"]
[350066345,1737597074544,-627.26,0.00021643,2]
[350066346,1737597074553,-500.0,0.00021643,2]
[350066347,1737597074563,-1435.52,0.00021643,2]
[350066348,1737597074573,-1381.09,0.00021643,2]
[350066349,1737597074582,-500.0,0.00021643,2]
[350066350,1737597074592,-873.98,0.00021643,2]
[350066351,1737597074601,-588.66,0.00021643,2]
[350066352,1737597074611,-500.0,0.00021643,2]
[350066353,1737597074620,-804.46,0.00021643,2]
[350066354,1737597074630,-500.0,0.00021643,2]
[350066355,1737597074639,-676.63,0.00021643,2]
[350066356,1737597074648,-2865.77,0.00021643,2]
[350066357,1737597074658,-725.79,0.00021643,2]
[350066358,1737597074668,-2221.72,0.00021643,2]
[350066359,1737597074677,-500.0,0.00021643,2]
[350066360,1737597074687,-519.17,0.00021643,2]
[350066361,1737597074696,-674.11,0.00021643,2]
[350066362,1737597074706,-1211.94,0.00021643,2]
[350066363,1737597074715,-500.0,0.00021643,2]
[350066364,1737597074725,-710.8,0.00021643,2]
[350066365,1737597074734,-622.58592544,0.00021643,2]
[350066366,1737597074745,-853.14,0.00021643,2]
[350066367,1737597074755,-712.48,0.00021643,2]
[350066368,1737597074764,-1663.29,0.00021643,2]
[350066369,1737597074774,-568.46,0.00021643,2]
[350066370,1737597074783,-706.45,0.00021643,2]
[350066371,1737597074793,-1244.86,0.00021643,2]
[350066372,1737597074803,-757.37,0.00021643,2]
[350066373,1737597074813,-1088.68,0.00021643,2]
[350066374,1737597074822,-1574.13,0.00021643,2]
[350066375,1737597074832,-1332.5,0.00021643,2]
[350066376,1737597074842,-500.0,0.00021643,2]
[350066377,1737597074852,-913.71,0.00021643,2]
[350066378,1737597074862,-655.19,0.00021643,2]
[350066379,1737597074871,-1162.79,0.00021643,2]
[350066380,1737597074881,-500.0,0.00021643,2]
[350066381,1737597074891,-500.0,0.00021643,2]
[350066382,1737597074900,-1340.52,0.00021643,2]
[350066383,1737597074909,-500.0,0.00021643,2]
[350066384,1737597074919,-3289.67,0.00021643,2]
[350066385,1737597074928,-500.0,0.00021643,2]
[350066386,1737597074938,-1000.0,0.00021643,2]
[350066387,1737597074948,-1716.49,0.00021643,2]
[350066388,1737597074957,-879.82,0.00021643,2]
[350066389,1737597074966,-1172.17,0.00021643,2]
[350066390,1737597074976,-500.0,0.00021643,2]
[350066391,1737597074985,-1711.63,0.00021643,2]
[350066392,1737597074996,-2409.19,0.00021643,2]
[350066393,1737597075006,-793.72,0.00021643,2]
[350066394,1737597075015,-500.0,0.00021643,2]
[350066395,1737597075025,-523.46619485,0.00021643,2]
[350066396,1737597075035,-490.42211074,0.00021643,2]
[350066397,1737597075044,-1896.45,0.00021643,2]
[350066398,1737597075054,-1858.04,0.00021643,2]
[350066399,1737597075063,-423.35632094,0.00021643,2]
[350066400,1737597075073,-500.0,0.00021643,2]
[350066401,1737597075082,-523.63214585,0.00021643,2]
[350066402,1737597075091,-704.23,0.00021643,2]
[350066403,1737597075101,-716.76,0.00021643,2]
[350066404,1737597075110,-1050.66,0.00021643,2]
[350066405,1737597075120,-1997.74,0.00021643,2]
[350066406,1737597075130,-525.22992652,0.00021643,2]
[350066407,1737597075139,-500.0,0.00021643,2]
[350066408,1737597075149,-529.26,0.00021643,2]
[350066409,1737597075159,-728.54,0.00021643,2]
[350066410,1737597075169,-1405.82,0.00021643,2]
[350066411,1737597075182,-500.0,0.00021643,2]
[350066412,1737597075192,-500.0,0.00021643,2]
[350066413,1737597075201,-1471.13,0.00021643,2]
[350066414,1737597075211,-1836.27,0.00021643,2]
[350066415,1737597075221,-841.66,0.00021643,2]
[350066416,1737597075231,-500.0,0.00021643,2]
[350066417,1737597075240,-500.0,0.00021643,2]
[350066418,1737597075253,-856.13,0.00021643,2]
[350066419,1737597075263,-1400.47,0.00021643,2]
[350066420,1737597075272,-598.94,0.00021643,2]
[350066421,1737597075281,-503.53,0.00021643,2]
[350066422,1737597075290,-500.0,0.00021643,2]
[350066423,1737597075300,-1061.16,0.00021643,2]
[350066424,1737597075310,-519.24763401,0.00021643,2]
[350066425,1737597075319,-806.2,0.00021643,2]
[350066426,1737597075329,-953.85,0.00021643,2]
[350066427,1737597075338,-500.0,0.00021643,2]
[350066428,1737597075348,-631.59,0.00021643,2]
[350066429,1737597075358,-500.0,0.00021643,2]
[350066430,1737597075367,-605.19,0.00021643,2]
[350066431,1737597075377,-612.54,0.00021643,2]
[350066432,1737597075387,-547.64,0.00021643,2]
[350066433,1737597075396,-500.0,0.00021643,2]
[350066434,1737597075406,-589.93,0.00021643,2]
[350066435,1737597075415,-500.0,0.00021643,2]
[350066436,1737597075425,-500.0,0.00021643,2]
[350066437,1737597075434,-1395.77,0.00021643,2]
[350066438,1737597075443,-1548.41,0.00021643,2]
[350066439,1737597075453,-645.68,0.00021643,2]
[350066440,1737597075463,-500.0,0.00021643,2]
[350066441,1737597075473,-734.11,0.00021643,2]
[350066442,1737597075483,-640.19,0.00021643,2]
[350066443,1737597075496,-913.91,0.00021643,2]
[350066444,1737597075506,-665.46,0.00021643,2]
[350066445,1737597075516,-500.0,0.00021643,2]
[350066446,1737597075526,-1033.15,0.00021643,2]
[350066447,1737597075535,-500.0,0.00021643,2]
[350066448,1737597075546,-547.85,0.00021643,2]
[350066449,1737597075556,-1043.11,0.00021643,2]
[350066450,1737597075565,-556.01,0.00021643,2]
[350066451,1737597075575,-991.21,0.00021643,2]
[350066452,1737597075584,-586.46,0.00021643,2]
[350066453,1737597075593,-1995.0,0.00021643,2]
[350066454,1737597075602,-2266.43,0.00021643,2]
[350066455,1737597075611,-500.0,0.00021643,2]
[350066456,1737597075620,-564.67,0.00021643,2]
[350066457,1737597075630,-1676.87,0.00021643,2]
[350066458,1737597075640,-500.0,0.00021643,2]
[350066459,1737597075649,-3898.98,0.00021643,2]
[350066460,1737597075659,-448.12838037,0.00021643,2]
[350066461,1737597075668,-500.0,0.00021643,2]
[350066462,1737597075678,-661.08,0.00021643,2]
[350066463,1737597075687,-500.0,0.00021643,2]
[350066464,1737597075696,-836.81,0.00021643,2]
[350066465,1737597075705,-821.27,0.00021643,2]
[350066466,1737597075714,-1502.53,0.00021643,2]
[350066467,1737597075724,-602.64919961,0.0002167,2]
[350066468,1737597075732,-500.0,0.00021685,7]
[350066469,1737597075743,-500.0,0.00021685,7]
[350066470,1737597075752,-206.0,0.0002169,2]
[350066471,1737597075761,-213.0,0.0002169,2]
[350066472,1737597075770,-352.06235706,0.00021693,3]
[350066473,1737597075779,-1000.0,0.000217,2]
[350066474,1737597075788,-152.81142041,0.00021737,2]
[350066475,1737597075796,-500.0,0.00021741,2]
[350066476,1737597075806,-840.13,0.00021747,2]
[350066477,1737597075815,-150.99,0.00021757,2]
[350066478,1737597075823,-150.0,0.00021774,2]
[350066479,1737597075832,-785.0,0.0002178,2]
[350066480,1737597075841,-509.12,0.000218,2]
[350066481,1737597075850,-150.0,0.000218,2]
[350066482,1737597075859,-150.0,0.00021809,2]
[350066483,1737597075867,-150.0,0.00021817,2]
[350066484,1737597075876,-150.0,0.00021822,2]
[350066485,1737597075885,-500.0,0.00021824,2]
[350066486,1737597075894,-150.487,0.00021828,2]
[350066487,1737597075903,-150.0,0.00021828,2]
[350066488,1737597075912,-155.878,0.00021828,2]
[350066489,1737597075921,-184.0,0.00021828,2]
[350066490,1737597075930,-150.0,0.00021828,2]
[350066491,1737597075939,-891.17,0.00021828,2]
[350066492,1737597075948,-150.0,0.00021857,2]
[350066493,1737597075957,-150.0,0.00021863,2]
[350066494,1737597075966,-150.0,0.00021873,2]
[350066495,1737597075975,-840.13,0.00021884,2]
[350066496,1737597075985,-10893.3563,0.000219,2]
[350066497,1737597075995,-15692.3825,0.000219,2]
[350066498,1737597076005,-4459.5596,0.000219,2]
[350066499,1737597076014,-352.06235706,0.000219,3]
[350066500,1737597076024,-21567.18542332,0.000219,2]
[350066501,1737597076138,-2043.33064904,0.000219,3]
[350066502,1737597076148,-2615.33893808,0.000219,2]
[350066503,1737597076162,-234.79091799,0.000219,2]
[350066504,1737597076172,-259.47905255,0.000219,2]
[350066505,1737597076181,-150.57707473,0.000219,4]
[350066506,1737597076191,-1909.0,0.000219,2]
[350066507,1737597076201,-150.0,0.00021916,2]
[350066508,1737597076210,-251.256397,0.00021917,2]
[350066509,1737597076220,-336.867004,0.00021917,2]
[350066510,1737597076229,-500.0,0.00021917,2]
[350066511,1737597076238,-565.2,0.00021917,2]
[350066512,1737597076252,-500.0,0.00021917,2]
[350066513,1737597076262,-318.52285764,0.00021917,2]
[350066514,1737597076272,-500.0,0.00021917,2]
[350066515,1737597076281,-500.0,0.00021917,2]
[350066516,1737597076291,-500.0,0.00021917,2]
[350066517,1737597076301,-522.47,0.00021917,2]
[350066518,1737597076310,-500.0,0.00021917,2]
[350066519,1737597076320,-500.0,0.00021917,2]
[350066520,1737597076330,-500.0,0.00021917,2]
[350066521,1737597076340,-500.0,0.00021917,2]
[350066522,1737597076349,-500.0,0.00021917,2]
[350066523,1737597076359,-500.0,0.00021917,2]
[350066524,1737597076369,-500.0,0.00021917,2]
[350066525,1737597076379,-481.79552049,0.00021917,2]
[350066526,1737597076388,-500.0,0.00021917,2]
[350066527,1737597076398,-500.0,0.00021917,2]
[350066528,1737597076408,-500.0,0.00021917,2]
[350066529,1737597076417,-500.0,0.00021917,2]
[350066530,1737597076427,-500.0,0.00021917,2]
[350066531,1737597076437,-500.0,0.00021917,2]
[350066532,1737597076447,-500.0,0.00021917,2]
[350066533,1737597076457,-623.29,0.00021917,2]
[350066534,1737597076467,-616.87,0.00021917,2]
[350066535,1737597076477,-488.68097831,0.00021917,2]
[350066536,1737597076487,-500.0,0.00021917,2]
[350066537,1737597076501,-500.0,0.00021917,2]
[350066538,1737597076512,-500.0,0.00021917,2]
[350066539,1737597076522,-509.43,0.00021917,2]
[350066540,1737597076532,-500.0,0.00021917,2]
[350066541,1737597076541,-500.0,0.00021917,2]
[350066542,1737597076551,-500.0,0.00021917,2]
[350066543,1737597076560,-500.0,0.00021917,2]
[350066544,1737597076570,-500.0,0.00021917,2]
[350066545,1737597076580,-825.88,0.00021917,2]
[350066546,1737597076589,-580.1,0.00021917,2]
[350066547,1737597076598,-500.0,0.00021917,2]
[350066548,1737597076607,-628.58,0.00021917,2]
[350066549,1737597076616,-500.0,0.00021917,2]
[350066550,1737597076627,-500.0,0.00021917,2]
[350066551,1737597076636,-501.59,0.00021917,2]
[350066552,1737597076646,-520.06,0.00021917,2]
[350066553,1737597076655,-714.27,0.00021917,2]
[350066554,1737597076664,-640.0,0.00021917,2]
[350066555,1737597076673,-500.0,0.00021917,2]
[350066556,1737597076683,-500.0,0.00021917,2]
[350066557,1737597076692,-500.0,0.00021917,2]
[350066558,1737597076702,-630.23,0.00021917,2]
[350066559,1737597076711,-500.0,0.00021917,2]
[350066560,1737597076719,-527.7,0.00021917,2]
[350066561,1737597076729,-500.0,0.00021917,2]
[350066562,1737597076739,-500.0,0.00021917,2]
[350066563,1737597076750,-522.55,0.00021917,2]
[350066564,1737597076759,-500.0,0.00021917,2]
[350066565,1737597076768,-500.0,0.00021917,2]
[350066566,1737597076777,-500.0,0.00021917,2]
[350066567,1737597076787,-500.0,0.00021917,2]
[350066568,1737597076796,-500.0,0.00021917,2]
[350066569,1737597076805,-565.1,0.00021917,2]
[350066570,1737597076815,-1056.51,0.00021917,2]
[350066571,1737597076824,-181.54776264,0.00021917,2]
[350066572,1737597076833,-500.0,0.00021917,2]
[350066573,1737597076842,-500.0,0.00021917,2]
[350066574,1737597076851,-627.26,0.00021917,2]
[350066575,1737597076860,-524.7123298,0.00021917,2]
[350066576,1737597076869,-1435.52,0.00021917,2]
[350066577,1737597076878,-1381.09,0.00021917,2]
[350066578,1737597076888,-500.0,0.00021917,2]
[350066579,1737597076897,-500.0,0.00021917,2]
[350066580,1737597076907,-500.0,0.00021917,2]
[350066581,1737597076917,-500.0,0.00021917,2]
[350066582,1737597076926,-873.98,0.00021917,2]
[350066583,1737597076936,-500.0,0.00021917,2]
[350066584,1737597076946,-390.23863215,0.00021917,2]
[350066585,1737597076955,-588.66,0.00021917,2]
[350066586,1737597076965,-500.0,0.00021917,2]
[350066587,1737597076974,-804.46,0.00021917,2]
[350066588,1737597076984,-520.21030347,0.00021917,2]
[350066589,1737597076997,-676.63,0.00021917,2]
[350066590,1737597077007,-2865.77,0.00021917,2]
[350066591,1737597077018,-725.79,0.00021917,2]
[350066592,1737597077028,-2221.72,0.00021917,2]
[350066593,1737597077038,-500.0,0.00021917,2]
[350066594,1737597077048,-519.17,0.00021917,2]
[350066595,1737597077059,-674.11,0.00021917,2]
[350066596,1737597077068,-1211.94,0.00021917,2]
[350066597,1737597077078,-500.0,0.00021917,2]
[350066598,1737597077088,-710.8,0.00021917,2]
[350066599,1737597077098,-853.14,0.00021917,2]
[350066600,1737597077108,-712.48,0.00021917,2]
[350066601,1737597077118,-1663.29,0.00021917,2]
[350066602,1737597077127,-568.46,0.00021917,2]
[350066603,1737597077136,-706.45,0.00021917,2]
[350066604,1737597077146,-1244.86,0.00021917,2]
[350066605,1737597077157,-757.37,0.00021917,2]
[350066606,1737597077168,-1088.68,0.00021917,2]
[350066607,1737597077178,-1574.13,0.00021917,2]
[350066608,1737597077188,-500.0,0.00021917,2]
[350066609,1737597077198,-1332.5,0.00021917,2]
[350066610,1737597077208,-913.71,0.00021917,2]
[350066611,1737597077217,-655.19,0.00021917,2]
[350066612,1737597077227,-1162.79,0.00021917,2]
[350066613,1737597077238,-500.0,0.00021917,2]
[350066614,1737597077255,-500.0,0.00021917,2]
[350066615,1737597077265,-1340.52,0.00021917,2]
[350066616,1737597077275,-500.0,0.00021917,2]
[350066617,1737597077286,-500.0,0.00021917,3]
[350066618,1737597077296,-510.89844779,0.00021917,3]
[350066619,1737597077307,-3289.67,0.00021917,2]
[350066620,1737597077319,-500.0,0.00021917,2]
[350066621,1737597077330,-1000.0,0.00021917,2]
[350066622,1737597077341,-1716.49,0.00021917,2]
[350066623,1737597077352,-879.82,0.00021917,2]
[350066624,1737597077363,-1172.17,0.00021917,2]
[350066625,1737597077375,-500.0,0.00021917,2]
[350066626,1737597077386,-1711.63,0.00021917,2]
[350066627,1737597077397,-2409.19,0.00021917,2]
[350066628,1737597077408,-793.72,0.00021917,2]
[350066629,1737597077418,-227.30213698,0.00021917,2]
[350066630,1737597077428,-1896.45,0.00021917,2]
[350066631,1737597077438,-1858.04,0.00021917,2]
[350066632,1737597077449,-500.0,0.00021917,2]
[350066633,1737597077460,-704.23,0.00021917,2]
[350066634,1737597077470,-716.76,0.00021917,2]
[350066635,1737597077479,-1050.66,0.00021917,2]
[350066636,1737597077490,-1997.74,0.00021917,2]
[350066637,1737597077506,-500.0,0.00021917,2]
[350066638,1737597077517,-529.26,0.00021917,2]
[350066639,1737597077528,-728.54,0.00021917,2]
[350066640,1737597077537,-1405.82,0.00021917,2]
[350066641,1737597077547,-500.0,0.00021917,2]
[350066642,1737597077557,-500.0,0.00021917,2]
[350066643,1737597077566,-1471.13,0.00021917,2]
[350066644,1737597077577,-1836.27,0.00021917,2]
[350066645,1737597077587,-841.66,0.00021917,2]
[350066646,1737597077596,-500.0,0.00021917,2]
[350066647,1737597077606,-500.0,0.00021917,2]
[350066648,1737597077615,-856.13,0.00021917,2]
[350066649,1737597077625,-1400.47,0.00021917,2]
[350066650,1737597077634,-598.94,0.00021917,2]
[350066651,1737597077644,-503.53,0.00021917,2]
[350066652,1737597077654,-500.0,0.00021917,2]
[350066653,1737597077664,-1061.16,0.00021917,2]
[350066654,1737597077673,-806.2,0.00021917,2]
[350066655,1737597077683,-953.85,0.00021917,2]
[350066656,1737597077692,-500.0,0.00021917,2]
[350066657,1737597077702,-631.59,0.00021917,2]
[350066658,1737597077712,-500.0,0.00021917,2]
[350066659,1737597077722,-605.19,0.00021917,2]
[350066660,1737597077732,-612.54,0.00021917,2]
[350066661,1737597077741,-547.64,0.00021917,2]
[350066662,1737597077755,-500.0,0.00021917,2]
[350066663,1737597077765,-589.93,0.00021917,2]
[350066664,1737597077774,-500.0,0.00021917,2]
[350066665,1737597077783,-1395.77,0.00021917,2]
[350066666,1737597077793,-500.0,0.00021917,2]
[350066667,1737597077802,-1548.41,0.00021917,2]
[350066668,1737597077811,-645.68,0.00021917,2]
[350066669,1737597077821,-500.0,0.00021917,2]
[350066670,1737597077831,-734.11,0.00021917,2]
[350066671,1737597077840,-640.19,0.00021917,2]
[350066672,1737597077849,-913.91,0.00021917,2]
[350066673,1737597077858,-665.46,0.00021917,2]
[350066674,1737597077868,-186.52692096,0.00021917,2]
[350066675,1737597077877,-1033.15,0.00021917,2]
[350066676,1737597077886,-500.0,0.00021917,2]
[350066677,1737597077895,-547.85,0.00021917,2]
[350066678,1737597077905,-1043.11,0.00021917,2]
[350066679,1737597077914,-556.01,0.00021917,2]
[350066680,1737597077923,-991.21,0.00021917,2]
[350066681,1737597078032,-586.46,0.00021917,2]
[350066682,1737597078043,-1995.0,0.00021917,2]
[350066683,1737597078052,-2266.43,0.00021917,2]
[350066684,1737597078062,-500.0,0.00021917,2]
[350066685,1737597078072,-564.67,0.00021917,2]
[350066686,1737597078081,-1676.87,0.00021917,2]
[350066687,1737597078091,-500.0,0.00021917,2]
[350066688,1737597078100,-3898.98,0.00021917,2]
[350066689,1737597078109,-500.0,0.00021917,2]
[350066690,1737597078119,-661.08,0.00021917,2]
[350066691,1737597078129,-500.0,0.00021917,2]
[350066692,1737597078139,-836.81,0.00021917,2]
[350066693,1737597078148,-821.27,0.00021917,2]
[350066694,1737597078160,-1502.53,0.00021917,2]
[350066695,1737597078169,-150.0,0.00021918,2]
[350066696,1737597078182,-150.0,0.00021947,2]
[350066697,1737597078191,-150.0,0.00021947,2]
[350066698,1737597078201,-179.01625693,0.00021953,2]
[350066699,1737597078210,-150.0,0.00021958,2]
[350066700,1737597078219,-500.0,0.00021959,7]
[350066701,1737597078229,-500.0,0.00021959,7]
[350066702,1737597078238,-150.0,0.00021964,2]
[350066703,1737597078251,-150.0,0.00021967,2]
[350066704,1737597078261,-317.60208962,0.00021973,4]
[350066705,1737597078271,-150.0,0.00021973,4]
[350066706,1737597078281,-163.088079,0.00021973,4]
[350066707,1737597078291,-151.46439011,0.00021973,4]
[350066708,1737597078301,-150.0,0.00021973,4]
[350066709,1737597078311,-1307.58,0.00021977,2]
[350066710,1737597078321,-317.60208962,0.00021977,4]
[350066711,1737597078330,-163.088079,0.00021977,4]
[350066712,1737597078339,-150.0,0.0002198,4]
[350066713,1737597078349,-317.60208962,0.00021981,4]
[350066714,1737597078359,-163.088079,0.00021981,4]
[350066715,1737597078368,-150.0,0.00021984,2]
[350066716,1737597078378,-317.60208962,0.00021985,4]
[350066717,1737597078388,-163.088079,0.00021985,4]
[350066718,1737597078398,-150.0,0.00021987,4]
[350066719,1737597078407,-6699.6086632,0.00021989,2]
[350066720,1737597078417,-317.60208962,0.00021989,4]
[350066721,1737597078426,-163.088079,0.00021989,4]
[350066722,1737597078436,-2003.48,0.0002199,2]
[350066723,1737597078445,-150.0,0.00021993,4]
[350066724,1737597078455,-317.60208962,0.00021993,4]
[350066725,1737597078465,-163.088079,0.00021993,4]
[350066726,1737597078474,-150.0,0.00021994,4]
[350066727,1737597078484,-317.60208962,0.00021998,4]
[350066728,1737597078496,-163.088079,0.00021998,4]
[350066729,1737597078510,-175.84798705,0.00021999,20]
[350066730,1737597078520,-222.3084069,0.00021999,7]
[350066731,1737597078530,-206.68624049,0.00022,2]
[350066732,1737597078540,-1841456.91422383,0.00022,2]
[350066733,1737597078550,-1918.7784779,0.00022,2]
[350066734,1737597078561,-26332.69671899,0.00022,2]
[350066735,1737597078801,-18496.61294814,0.00022,2]
[350066736,1737597078812,-129424.41693638,0.00022,2]
[350066737,1737597078823,-1430.99799678,0.00022,2]
[350066738,1737597078835,-31628.4163,0.00022,2]
[350066739,1737597078845,-1654.77798799,0.00022,2]
[350066740,1737597078857,-6219.57350507,0.00022,2]
[350066741,1737597078894,-253.2,0.00022,2]
[350066742,1737597078906,-1556.91599994,0.00022,2]
[350066743,1737597078926,-500.0,0.00019178,2]
[350066744,1737597078935,-500.0,0.00019726,2]
[350066745,1737597078944,-2779.23172504,0.00022,2]
[350066746,1737597078955,-14710.11608852,0.00022,2]
[350066747,1737597078966,-138147.72651061,0.00022,2]
[350066748,1737597078977,-709892.03037129,0.00022,2]
[350066749,1737597078988,-1386528.39107794,0.00022,2]
[350066750,1737597079010,-500.0,0.00019178,2]
[350066751,1737597079020,-500.0,0.0002,2]
[350066752,1737597079029,-475291.73654221,0.00022,2]
[350066753,1737597079041,-1027.3,0.00022,2]
[350066754,1737597079061,-1936.72,0.00021985,2]
[350066755,1737597079072,-3571.8471231,0.00021985,2]
[350066756,1737597079081,-16239.43345372,0.00022,2]
[350066757,1737597079121,-500.0,0.00019452,2]
[350066758,1737597079131,-4317.525583,0.00021985,2]
[350066759,1737597079139,-3126.4840428,0.00021985,2]
[350066760,1737597079149,-193675.99037418,0.00022,2]
[350066761,1737597079165,-2565.65,0.00022,2]
[350066762,1737597079366,-155.028703,0.00019178,2]
[350066763,1737597079376,-500.0,0.00019178,2]
[350066764,1737597079386,-506.74362084,0.00019178,2]
[350066765,1737597079396,-500.0,0.00019178,2]
[350066766,1737597079406,-155.028703,0.00019452,2]
[350066767,1737597079416,-225.23434354,0.00019726,2]
[350066768,1737597079717,-500.0,0.00019452,2]
[350066769,1737597079727,-274.76565646,0.00019726,2]
[350066770,1737597079737,-155.028703,0.00019726,2]
[350066771,1737597079749,-500.0,0.0002,2]
[350066772,1737597079759,-155.028703,0.0002,2]
[350066773,1737597079769,-500.0,0.00020273,2]
[350066774,1737597079779,-500.0,0.00020547,2]
[350066775,1737597079789,-155.028703,0.00020547,2]
[350066776,1737597079798,-155.028703,0.00020821,2]
[350066777,1737597079808,-155.028703,0.00021095,2]
[350066778,1737597079817,-160.258,0.00021828,2]
[350066779,1737597079827,-150.0,0.00021904,2]
[350066780,1737597079838,-150.0,0.00021924,2]
[350066781,1737597079847,-150.0,0.0002194,2]
[350066782,1737597079857,-150.0,0.0002198,2]
[350066783,1737597079866,-1935.4425027,0.00021985,2]
[350066784,1737597079876,-744.4009625,0.00021985,2]
[350066785,1737597079885,-378633.79036331,0.00022,2]
[350066786,1737597079897,-435.7421098,0.00022,2]
[350066787,1737597079913,-150.0,0.00021851,2]
[350066788,1737597079923,-14484.68298802,0.00022,2]
[350066789,1737597079942,-150.0,0.00021828,2]
[350066790,1737597079952,-363.1999999,0.00022,2]
[350066791,1737597079964,-305.0417283,0.00022,2]
[350066792,1737597079975,-310.31928751,0.00022,2]
[350066796,1737597406771,157.01231,0.00022,120]
[350066811,1737598145128,-178.88,0.00010137,2]
[350066812,1737598145149,-174.24,0.00012329,2]
[350066813,1737598145170,-1123.26,0.00016678,2]
[350066814,1737598147101,-6540.79784219,0.00018011,2]
[350066815,1737598147375,-256.16,0.00018011,2]
[350066816,1737598147398,-1257.81,0.00018012,2]
[350066817,1737598147419,-250.0,0.00018053,2]
[350066818,1737598147440,-150.0,0.00018071,2]
[350066819,1737598147461,-160.78,0.00018082,2]
[350066820,1737598147488,-250.0,0.00018134,2]
[350066821,1737598147508,-1136.69,0.00018306,2]
[350066822,1737598147528,-250.0,0.0001841,2]
[350066823,1737598147548,-154.09,0.00018445,2]
[350066824,1737598147567,-500.0,0.00018548,2]
[350066825,1737598147588,-800.24,0.0001871,2]
[350066826,1737598147608,-303.0,0.00018868,2]
[350066827,1737598147630,-23900.0,0.00018869,2]
[350066828,1737598147651,-1000.0,0.00018869,2]
[350066829,1737598147674,-1135.828,0.00018877,2]
[350066830,1737598147696,-7957.05656337,0.00018878,2]
[350066831,1737598147716,-10893.3563,0.00018878,2]
[350066832,1737598147736,-15692.3825,0.00018878,2]
[350066833,1737598147756,-4459.5596,0.00018878,2]
[350066834,1737598147777,-4991.7621,0.00018878,2]
[350066835,1737598147801,-700.0,0.000189,6]
[350066836,1737598147825,-1951.20416795,0.000189,2]
[350066837,1737598147846,-1123.26,0.00018942,2]
[350066838,1737598147868,-36178.1374,0.00018978,2]
[350066839,1737598147887,-1000.0,0.00018978,2]
[350066840,1737598147907,-20128.95732649,0.00018978,2]
[350066841,1737598147938,-7814.32645,0.00018978,2]
[350066842,1737598156144,-46119.0009,0.00018978,2]
[350066844,1737598173002,254.84939828,0.00018548,2]
[350066846,1737598209787,172.25,0.00010137,2]
[350066847,1737598210010,92.71433138,0.00016813,2]
[350066858,1737598232596,-79.53566862,0.00016813,2]
[350066859,1737598232606,-220.46433138,0.00018548,2]
[350066863,1737598239101,-1852.06,0.00018508,2]
[350066864,1737598239111,-24.68627034,0.00018548,2]
[350066865,1737598239121,-8491.55661496,0.00018978,2]
[350066866,1737598239133,-327.84989924,0.00018978,2]
[350066867,1737598239145,-17755.05470931,0.00018978,2]
[350066868,1737598239155,-1628.0,0.00019,2]
[350066869,1737598239164,-1951.20416786,0.00019003,2]
[350066870,1737598239174,-4001.85684247,0.00019078,2]
[350066871,1737598239184,-175.87843107,0.00019078,2]
[350066872,1737598239194,-40350.8301,0.00019078,2]
[350066873,1737598239204,-5000.0,0.00019078,2]
[350066874,1737598239214,-265.7804,0.00019078,2]
[350066875,1737598239226,-239.85,0.00019088,30]
[350066876,1737598239239,-1951.20416786,0.00019107,2]